[Event "Titled Tuesday Blitz March 14 Late 2023"]
[White "Djordjevic, Dejan N"]
[Black "Bas Mas, Jose Joaquin"]
[WhiteFideId "913316"]
[BlackFideId "22219064"]
[WhiteElo "2261"]
[BlackElo "2233"]
[Result "0-1"]
[Round "03"]
[TimeControl "180+1"]
[Date "2023.03.14"]
[WhiteClock "0:00:01"]
[BlackClock "0:00:20"]

1. e4 {[%clk 0:03:00]}  c5 {[%clk 0:02:58]} 2. Nc3 {[%clk 0:02:59]}  Nc6 {[%clk 0:02:57]} 3. g3 {[%clk 0:03:00]}  g6 {[%clk 0:02:57]} 4. Bg2 {[%clk 0:03:00]}  Bg7 {[%clk 0:02:57]} 5. Nge2 {[%clk 0:03:01]}  d6 {[%clk 0:02:58]} 6. O-O {[%clk 0:03:01]}  Nf6 {[%clk 0:02:58]} 7. h3 {[%clk 0:03:02]}  O-O {[%clk 0:02:58]} 8. d3 {[%clk 0:03:02]}  Rb8 {[%clk 0:02:59]} 9. f4 {[%clk 0:03:02]}  Ne8 {[%clk 0:02:57]} 10. Be3 {[%clk 0:03:00]}  Nc7 {[%clk 0:02:53]} 11. f5 {[%clk 0:02:56]}  b6 {[%clk 0:02:50]} 12. g4 {[%clk 0:02:54]}  Ba6 {[%clk 0:02:48]} 13. Qd2 {[%clk 0:02:52]}  b5 {[%clk 0:02:35]} 14. Rae1 {[%clk 0:02:48]}  b4 {[%clk 0:02:35]} 15. Nd1 {[%clk 0:02:48]}  c4 {[%clk 0:02:35]} 16. d4 {[%clk 0:02:36]}  c3 {[%clk 0:02:32]} 17. bxc3 {[%clk 0:02:36]}  d5 {[%clk 0:02:25]} 18. e5 {[%clk 0:02:30]}  Re8 {[%clk 0:02:21]} 19. Rf2 {[%clk 0:02:07]}  Na5 {[%clk 0:02:17]} 20. Bh6 {[%clk 0:01:53]}  Bh8 {[%clk 0:01:55]} 21. Qf4 {[%clk 0:01:52]}  f6 {[%clk 0:01:50]} 22. h4 {[%clk 0:01:45]}  Nc4 {[%clk 0:01:42]} 23. e6 {[%clk 0:01:30]}  Qd6 {[%clk 0:01:36]} 24. Qc1 {[%clk 0:01:15]}  bxc3 {[%clk 0:01:33]} 25. Nexc3 {[%clk 0:01:08]}  Bb7 {[%clk 0:01:29]} 26. Bf4 {[%clk 0:01:07]}  Qc6 {[%clk 0:01:27]} 27. Bxc7 {[%clk 0:01:02]}  Qxc7 {[%clk 0:01:28]} 28. Nxd5 {[%clk 0:01:02]}  Qg3 {[%clk 0:01:26]} 29. Qf4 {[%clk 0:00:57]}  Qxh4 {[%clk 0:01:06]} 30. Nxe7+ {[%clk 0:00:47]}  Kf8 {[%clk 0:01:06]} 31. Nd5 {[%clk 0:00:27]}  Kg8 {[%clk 0:00:55]} 32. fxg6 {[%clk 0:00:22]}  hxg6 {[%clk 0:00:54]} 33. Nxf6+ {[%clk 0:00:20]}  Bxf6 {[%clk 0:00:52]} 34. Qxf6 {[%clk 0:00:20]}  Qxf6 {[%clk 0:00:48]} 35. Rxf6 {[%clk 0:00:19]}  Bc8 {[%clk 0:00:45]} 36. d5 {[%clk 0:00:19]}  Nd6 {[%clk 0:00:43]} 37. Rxg6+ {[%clk 0:00:18]}  Kh7 {[%clk 0:00:43]} 38. Rf6 {[%clk 0:00:18]}  Rg8 {[%clk 0:00:42]} 39. Ne3 {[%clk 0:00:17]}  Ba6 {[%clk 0:00:34]} 40. Kf2 {[%clk 0:00:15]}  Kg7 {[%clk 0:00:32]} 41. Rf4 {[%clk 0:00:15]}  Rbf8 {[%clk 0:00:29]} 42. Rxf8 {[%clk 0:00:14]}  Rxf8+ {[%clk 0:00:30]} 43. Kg3 {[%clk 0:00:14]}  Kg6 {[%clk 0:00:26]} 44. Rc1 {[%clk 0:00:11]}  Rc8 {[%clk 0:00:25]} 45. Nf5 {[%clk 0:00:03]}  Nxf5+ {[%clk 0:00:22]} 46. gxf5+ {[%clk 0:00:02]}  Kxf5 {[%clk 0:00:23]} 47. c4 {[%clk 0:00:01]}  Bxc4 {[%clk 0:00:22]} 48. e7 {[%clk 0:00:01]}  Rg8+ {[%clk 0:00:20]} 0-1


[Site "https://www.chess.com"]

[Event "Titled Tuesday Blitz March 14 Late 2023"]
[White "Domingo Nunez, Ruben"]
[Black "Goncalves, Davi Sulzbacher"]
[WhiteFideId "22245570"]
[BlackFideId "2154510"]
[WhiteElo "2404"]
[BlackElo "2182"]
[Result "0-1"]
[Round "03"]
[TimeControl "180+1"]
[Date "2023.03.14"]
[WhiteClock "0:00:54"]
[BlackClock "0:00:01"]

1. e4 {[%clk 0:03:00]}  c6 {[%clk 0:02:58]} 2. Nf3 {[%clk 0:03:00]}  d5 {[%clk 0:02:58]} 3. exd5 {[%clk 0:03:00]}  cxd5 {[%clk 0:02:58]} 4. Ne5 {[%clk 0:03:01]}  Nf6 {[%clk 0:02:52]} 5. Bb5+ {[%clk 0:03:01]}  Nbd7 {[%clk 0:02:51]} 6. d4 {[%clk 0:02:49]}  e6 {[%clk 0:02:48]} 7. O-O {[%clk 0:02:48]}  Be7 {[%clk 0:02:40]} 8. f4 {[%clk 0:02:47]}  O-O {[%clk 0:02:38]} 9. c3 {[%clk 0:02:47]}  Ne4 {[%clk 0:02:32]} 10. Nd2 {[%clk 0:02:47]}  f5 {[%clk 0:02:25]} 11. Ndf3 {[%clk 0:02:36]}  Ndf6 {[%clk 0:02:21]} 12. Bd2 {[%clk 0:02:24]}  Qb6 {[%clk 0:02:10]} 13. Qb3 {[%clk 0:02:21]}  a6 {[%clk 0:02:03]} 14. Bd3 {[%clk 0:02:19]}  Qxb3 {[%clk 0:02:02]} 15. axb3 {[%clk 0:02:20]}  Nxd2 {[%clk 0:02:00]} 16. Nxd2 {[%clk 0:02:21]}  Bd7 {[%clk 0:02:00]} 17. Nxd7 {[%clk 0:02:10]}  Nxd7 {[%clk 0:01:59]} 18. Rfe1 {[%clk 0:02:11]}  Rf6 {[%clk 0:01:59]} 19. Nf3 {[%clk 0:02:10]}  Bd6 {[%clk 0:01:56]} 20. g3 {[%clk 0:02:10]}  Rc8 {[%clk 0:01:37]} 21. c4 {[%clk 0:02:05]}  Bb4 {[%clk 0:01:28]} 22. Rec1 {[%clk 0:02:05]}  Rff8 {[%clk 0:01:08]} 23. c5 {[%clk 0:01:59]}  Nb8 {[%clk 0:01:02]} 24. Ra4 {[%clk 0:01:46]}  Nc6 {[%clk 0:01:01]} 25. Rca1 {[%clk 0:01:45]}  h6 {[%clk 0:00:35]} 26. Kf2 {[%clk 0:01:45]}  g6 {[%clk 0:00:31]} 27. Ke3 {[%clk 0:01:45]}  Kg7 {[%clk 0:00:31]} 28. Ne5 {[%clk 0:01:45]}  Nxe5 {[%clk 0:00:30]} 29. fxe5 {[%clk 0:01:45]}  a5 {[%clk 0:00:31]} 30. Bb5 {[%clk 0:01:32]}  Rc7 {[%clk 0:00:30]} 31. Rxb4 {[%clk 0:01:29]}  axb4 {[%clk 0:00:30]} 32. Ra4 {[%clk 0:01:30]}  g5 {[%clk 0:00:24]} 33. Kf3 {[%clk 0:01:30]}  h5 {[%clk 0:00:16]} 34. Rxb4 {[%clk 0:01:27]}  f4 {[%clk 0:00:16]} 35. g4 {[%clk 0:01:25]}  hxg4+ {[%clk 0:00:13]} 36. Kxg4 {[%clk 0:01:26]}  f3 {[%clk 0:00:13]} 37. Bf1 {[%clk 0:01:25]}  f2 {[%clk 0:00:11]} 38. Kxg5 {[%clk 0:01:23]}  Kh7 {[%clk 0:00:07]} 39. Bd3+ {[%clk 0:01:16]}  Kh8 {[%clk 0:00:07]} 40. Bf1 {[%clk 0:01:16]}  Rg7+ {[%clk 0:00:07]} 41. Kh6 {[%clk 0:01:15]}  Rf4 {[%clk 0:00:06]} 42. Kh5 {[%clk 0:01:14]}  Rf5+ {[%clk 0:00:04]} 43. Kh4 {[%clk 0:01:14]}  Rfg5 {[%clk 0:00:03]} 44. Bd3 {[%clk 0:00:59]}  Rg4+ {[%clk 0:00:01]} 45. Kh5 {[%clk 0:00:58]}  Rg2 {[%clk 0:00:01]} 46. h4 {[%clk 0:00:57]}  f1=Q {[%clk 0:00:01]} 47. Bxf1 {[%clk 0:00:54]}  Rh7# {[%clk 0:00:01]} 0-1


[Site "https://www.chess.com"]

[Event "Titled Tuesday Blitz March 14 Late 2023"]
[White "Drygalov, Andrey"]
[Black "Cardoso Cardoso, Jose Gabriel"]
[WhiteFideId "24171735"]
[BlackFideId "4430492"]
[WhiteElo "2471"]
[BlackElo "2496"]
[Result "0-1"]
[Round "03"]
[TimeControl "180+1"]
[Date "2023.03.14"]
[WhiteClock "0:00:04"]
[BlackClock "0:00:05"]

1. e4 {[%clk 0:03:00]}  c5 {[%clk 0:02:58]} 2. Nf3 {[%clk 0:03:00]}  e6 {[%clk 0:02:55]} 3. d4 {[%clk 0:03:00]}  cxd4 {[%clk 0:02:56]} 4. Nxd4 {[%clk 0:03:01]}  Nc6 {[%clk 0:02:57]} 5. Nc3 {[%clk 0:03:01]}  a6 {[%clk 0:02:58]} 6. Be2 {[%clk 0:03:00]}  Nge7 {[%clk 0:02:54]} 7. Be3 {[%clk 0:02:48]}  Nxd4 {[%clk 0:02:53]} 8. Qxd4 {[%clk 0:02:48]}  Nc6 {[%clk 0:02:52]} 9. Qd2 {[%clk 0:02:49]}  b5 {[%clk 0:02:46]} 10. O-O {[%clk 0:02:48]}  Be7 {[%clk 0:02:33]} 11. f4 {[%clk 0:02:47]}  d6 {[%clk 0:02:33]} 12. a3 {[%clk 0:02:05]}  O-O {[%clk 0:02:32]} 13. Bd3 {[%clk 0:02:05]}  Rb8 {[%clk 0:02:31]} 14. Qf2 {[%clk 0:02:00]}  b4 {[%clk 0:02:11]} 15. Na4 {[%clk 0:01:41]}  bxa3 {[%clk 0:02:03]} 16. bxa3 {[%clk 0:01:39]}  Qa5 {[%clk 0:01:47]} 17. Nb6 {[%clk 0:01:36]}  Bf6 {[%clk 0:01:43]} 18. Nc4 {[%clk 0:01:35]}  Qc7 {[%clk 0:01:41]} 19. Rab1 {[%clk 0:01:35]}  d5 {[%clk 0:01:24]} 20. Rxb8 {[%clk 0:00:50]}  Qxb8 {[%clk 0:01:20]} 21. e5 {[%clk 0:00:41]}  dxc4 {[%clk 0:00:42]} 22. Bxh7+ {[%clk 0:00:41]}  Kxh7 {[%clk 0:00:39]} 23. exf6 {[%clk 0:00:42]}  Rh8 {[%clk 0:00:27]} 24. Qf3 {[%clk 0:00:20]}  Qb5 {[%clk 0:00:21]} 25. Qg4 {[%clk 0:00:15]}  g6 {[%clk 0:00:15]} 26. Rd1 {[%clk 0:00:11]}  Qh5 {[%clk 0:00:13]} 27. h3 {[%clk 0:00:09]}  e5 {[%clk 0:00:08]} 28. Qxh5+ {[%clk 0:00:08]}  gxh5 {[%clk 0:00:09]} 29. Rd6 {[%clk 0:00:07]}  Nd4 {[%clk 0:00:09]} 30. fxe5 {[%clk 0:00:07]}  Nf5 {[%clk 0:00:08]} 31. Rc6 {[%clk 0:00:04]}  Nxe3 {[%clk 0:00:08]} 32. c3 {[%clk 0:00:05]}  Be6 {[%clk 0:00:06]} 33. Rxa6 {[%clk 0:00:05]}  Nd1 {[%clk 0:00:06]} 34. a4 {[%clk 0:00:04]}  Nxc3 {[%clk 0:00:06]} 35. a5 {[%clk 0:00:05]}  Nd5 {[%clk 0:00:04]} 36. Rc6 {[%clk 0:00:05]}  c3 {[%clk 0:00:05]} 37. a6 {[%clk 0:00:05]}  Ra8 {[%clk 0:00:05]} 38. Kf2 {[%clk 0:00:05]}  Nb4 {[%clk 0:00:03]} 39. Rxc3 {[%clk 0:00:05]}  Rxa6 {[%clk 0:00:04]} 40. Rc7 {[%clk 0:00:03]}  Ra5 {[%clk 0:00:03]} 41. Rb7 {[%clk 0:00:02]}  Nd3+ {[%clk 0:00:03]} 42. Kg3 {[%clk 0:00:03]}  Nxe5 {[%clk 0:00:04]} 43. Kh4 {[%clk 0:00:03]}  Ng6+ {[%clk 0:00:04]} 44. Kg3 {[%clk 0:00:04]}  h4+ {[%clk 0:00:05]} 45. Kh2 {[%clk 0:00:04]}  Rf5 {[%clk 0:00:05]} 46. Rb4 {[%clk 0:00:03]}  Rxf6 {[%clk 0:00:05]} 47. Kg1 {[%clk 0:00:04]}  Bd5 {[%clk 0:00:05]} 48. Rd4 {[%clk 0:00:04]}  Rf5 {[%clk 0:00:05]} 49. Kh2 {[%clk 0:00:04]}  Rg5 {[%clk 0:00:06]} 50. g4 {[%clk 0:00:03]}  hxg3+ {[%clk 0:00:06]} 51. Kg1 {[%clk 0:00:04]}  Ne5 {[%clk 0:00:05]} 0-1


[Site "https://www.chess.com"]

[Event "Titled Tuesday Blitz March 14 Late 2023"]
[White "Dubov, Daniil"]
[Black "Visakh N R"]
[WhiteFideId "24126055"]
[BlackFideId "25012223"]
[WhiteElo "2802"]
[BlackElo "2466"]
[Result "0-1"]
[Round "03"]
[TimeControl "180+1"]
[Date "2023.03.14"]
[WhiteClock "0:00:01"]
[BlackClock "0:01:05"]

1. d4 {[%clk 0:03:00]}  d5 {[%clk 0:02:58]} 2. c4 {[%clk 0:03:01]}  dxc4 {[%clk 0:02:59]} 3. Nf3 {[%clk 0:02:59]}  Nf6 {[%clk 0:02:59]} 4. e3 {[%clk 0:02:59]}  e6 {[%clk 0:02:59]} 5. Bxc4 {[%clk 0:03:00]}  c5 {[%clk 0:02:59]} 6. O-O {[%clk 0:02:55]}  a6 {[%clk 0:03:00]} 7. Qe2 {[%clk 0:02:55]}  b5 {[%clk 0:02:59]} 8. Bd3 {[%clk 0:02:55]}  Nbd7 {[%clk 0:02:59]} 9. Rd1 {[%clk 0:02:51]}  Bb7 {[%clk 0:02:59]} 10. e4 {[%clk 0:02:45]}  cxd4 {[%clk 0:02:59]} 11. Nxd4 {[%clk 0:02:29]}  Bc5 {[%clk 0:02:58]} 12. Nb3 {[%clk 0:02:25]}  Bd6 {[%clk 0:02:55]} 13. Bxb5 {[%clk 0:02:18]}  Bxh2+ {[%clk 0:02:54]} 14. Kxh2 {[%clk 0:02:19]}  axb5 {[%clk 0:02:55]} 15. f3 {[%clk 0:02:11]}  O-O {[%clk 0:02:50]} 16. Be3 {[%clk 0:01:57]}  b4 {[%clk 0:02:45]} 17. N1d2 {[%clk 0:01:52]}  Ba6 {[%clk 0:02:45]} 18. Qf2 {[%clk 0:01:48]}  Ne5 {[%clk 0:02:46]} 19. Qg3 {[%clk 0:01:46]}  Nd3 {[%clk 0:02:40]} 20. Nc5 {[%clk 0:01:12]}  Nh5 {[%clk 0:02:38]} 21. Qg4 {[%clk 0:00:42]}  Nf6 {[%clk 0:02:18]} 22. Qh4 {[%clk 0:00:33]}  Nxc5 {[%clk 0:02:16]} 23. Nb3 {[%clk 0:00:30]}  Nd3 {[%clk 0:02:15]} 24. Rd2 {[%clk 0:00:27]}  Qc7+ {[%clk 0:02:02]} 25. Kg1 {[%clk 0:00:27]}  Ne5 {[%clk 0:01:53]} 26. Rc1 {[%clk 0:00:24]}  Qb8 {[%clk 0:01:51]} 27. Bc5 {[%clk 0:00:14]}  Rc8 {[%clk 0:01:50]} 28. Rcd1 {[%clk 0:00:12]}  Bc4 {[%clk 0:01:37]} 29. Bd6 {[%clk 0:00:05]}  Qb6+ {[%clk 0:01:36]} 30. Qf2 {[%clk 0:00:04]}  Qxf2+ {[%clk 0:01:36]} 31. Kxf2 {[%clk 0:00:04]}  Bxb3 {[%clk 0:01:24]} 32. axb3 {[%clk 0:00:05]}  Ned7 {[%clk 0:01:23]} 33. Bxb4 {[%clk 0:00:04]}  h5 {[%clk 0:01:23]} 34. Rxd7 {[%clk 0:00:04]}  Nxd7 {[%clk 0:01:23]} 35. Rxd7 {[%clk 0:00:05]}  Rc2+ {[%clk 0:01:22]} 36. Rd2 {[%clk 0:00:04]}  Rac8 {[%clk 0:01:12]} 37. Ke3 {[%clk 0:00:04]}  g5 {[%clk 0:01:12]} 38. Bc3 {[%clk 0:00:04]}  Rxd2 {[%clk 0:01:11]} 39. Kxd2 {[%clk 0:00:04]}  f5 {[%clk 0:01:12]} 40. exf5 {[%clk 0:00:02]}  exf5 {[%clk 0:01:12]} 41. b4 {[%clk 0:00:03]}  Kf7 {[%clk 0:01:12]} 42. Ke3 {[%clk 0:00:03]}  Ke6 {[%clk 0:01:12]} 43. Kd4 {[%clk 0:00:03]}  g4 {[%clk 0:01:13]} 44. fxg4 {[%clk 0:00:02]}  fxg4 {[%clk 0:01:13]} 45. g3 {[%clk 0:00:03]}  h4 {[%clk 0:01:05]} 46. gxh4 {[%clk 0:00:04]}  g3 {[%clk 0:01:05]} 47. Kd3 {[%clk 0:00:01]}  g2 {[%clk 0:01:04]} 48. Bd4 {[%clk 0:00:01]}  Rd8 {[%clk 0:01:05]} 0-1


[Site "https://www.chess.com"]

[Event "Titled Tuesday Blitz March 14 Late 2023"]
[White "Estrada Nieto, Julian"]
[Black "Sabar, Ethmane Daouda"]
[WhiteFideId "5101018"]
[BlackFideId "19600097"]
[WhiteElo "2176"]
[BlackElo "1950"]
[Result "1-0"]
[Round "03"]
[TimeControl "180+1"]
[Date "2023.03.14"]
[WhiteClock "0:00:06"]
[BlackClock "0:00:14"]

1. e4 {[%clk 0:03:00]}  c5 {[%clk 0:02:55]} 2. Nf3 {[%clk 0:03:00]}  Nc6 {[%clk 0:02:55]} 3. Bb5 {[%clk 0:02:59]}  e5 {[%clk 0:02:54]} 4. c3 {[%clk 0:02:57]}  d6 {[%clk 0:02:50]} 5. O-O {[%clk 0:02:55]}  Bd7 {[%clk 0:02:49]} 6. d4 {[%clk 0:02:54]}  cxd4 {[%clk 0:02:49]} 7. cxd4 {[%clk 0:02:54]}  Qc7 {[%clk 0:02:47]} 8. Nc3 {[%clk 0:02:53]}  a6 {[%clk 0:02:47]} 9. Ba4 {[%clk 0:02:51]}  Nf6 {[%clk 0:02:42]} 10. Bg5 {[%clk 0:02:50]}  b5 {[%clk 0:02:38]} 11. Bb3 {[%clk 0:02:46]}  Nxd4 {[%clk 0:02:37]} 12. Nxd4 {[%clk 0:02:44]}  exd4 {[%clk 0:02:37]} 13. Bxf6 {[%clk 0:02:36]}  dxc3 {[%clk 0:02:37]} 14. Bxc3 {[%clk 0:02:34]}  Be7 {[%clk 0:02:35]} 15. Rc1 {[%clk 0:02:10]}  Qd8 {[%clk 0:02:28]} 16. Bxg7 {[%clk 0:02:08]}  Rg8 {[%clk 0:02:27]} 17. Qd4 {[%clk 0:01:34]}  Rc8 {[%clk 0:02:09]} 18. Rxc8 {[%clk 0:01:29]}  Qxc8 {[%clk 0:01:58]} 19. Bf6 {[%clk 0:01:25]}  Bh3 {[%clk 0:01:47]} 20. g3 {[%clk 0:00:51]}  Bxf1 {[%clk 0:01:48]} 21. Kxf1 {[%clk 0:00:48]}  Qc1+ {[%clk 0:01:40]} 22. Kg2 {[%clk 0:00:47]}  Rg6 {[%clk 0:01:10]} 23. Bxe7 {[%clk 0:00:44]}  Kxe7 {[%clk 0:01:11]} 24. Qa7+ {[%clk 0:00:42]}  Kd8 {[%clk 0:01:00]} 25. Bxf7 {[%clk 0:00:38]}  Rf6 {[%clk 0:00:56]} 26. Bd5 {[%clk 0:00:27]}  Qxb2 {[%clk 0:00:51]} 27. Qb6+ {[%clk 0:00:22]}  Ke7 {[%clk 0:00:43]} 28. Qc7+ {[%clk 0:00:22]}  Kf8 {[%clk 0:00:43]} 29. Qd8+ {[%clk 0:00:21]}  Kg7 {[%clk 0:00:44]} 30. Qc7+ {[%clk 0:00:15]}  Kh6 {[%clk 0:00:42]} 31. Qa7 {[%clk 0:00:15]}  Qd2 {[%clk 0:00:35]} 32. Bg8 {[%clk 0:00:10]}  Kg5 {[%clk 0:00:14]} 33. Bxh7 {[%clk 0:00:09]}  Rxf2+ {[%clk 0:00:08]} 34. Qxf2 {[%clk 0:00:07]}  Qxf2+ {[%clk 0:00:09]} 35. Kxf2 {[%clk 0:00:07]}  a5 {[%clk 0:00:09]} 36. Ke3 {[%clk 0:00:07]}  a4 {[%clk 0:00:10]} 37. Bg8 {[%clk 0:00:08]}  b4 {[%clk 0:00:11]} 38. Bd5 {[%clk 0:00:08]}  b3 {[%clk 0:00:12]} 39. axb3 {[%clk 0:00:07]}  axb3 {[%clk 0:00:13]} 40. Bxb3 {[%clk 0:00:07]}  Kg4 {[%clk 0:00:13]} 41. Kd4 {[%clk 0:00:06]}  Kg5 {[%clk 0:00:14]} 42. Bd5 {[%clk 0:00:06]} 1-0


[Site "https://www.chess.com"]

[Event "Titled Tuesday Blitz March 14 Late 2023"]
[White "Ezat, Mohamed"]
[Black "Bluebaum, Matthias"]
[WhiteFideId "10600906"]
[BlackFideId "24651516"]
[WhiteElo "2386"]
[BlackElo "2638"]
[Result "0-1"]
[Round "03"]
[TimeControl "180+1"]
[Date "2023.03.14"]
[WhiteClock "0:00:01"]
[BlackClock "0:00:49"]

1. d4 {[%clk 0:02:59]}  d5 {[%clk 0:03:00]} 2. c4 {[%clk 0:03:00]}  e6 {[%clk 0:03:01]} 3. Nc3 {[%clk 0:03:00]}  Bb4 {[%clk 0:03:01]} 4. e3 {[%clk 0:02:59]}  Nf6 {[%clk 0:03:01]} 5. Bd3 {[%clk 0:02:58]}  dxc4 {[%clk 0:02:57]} 6. Bxc4 {[%clk 0:02:57]}  O-O {[%clk 0:02:58]} 7. Nf3 {[%clk 0:02:56]}  c5 {[%clk 0:02:56]} 8. O-O {[%clk 0:02:55]}  a6 {[%clk 0:02:57]} 9. a3 {[%clk 0:02:54]}  Bxc3 {[%clk 0:02:57]} 10. bxc3 {[%clk 0:02:55]}  b5 {[%clk 0:02:58]} 11. Bd3 {[%clk 0:02:55]}  Bb7 {[%clk 0:02:52]} 12. a4 {[%clk 0:02:54]}  c4 {[%clk 0:02:50]} 13. Bc2 {[%clk 0:02:53]}  Ne4 {[%clk 0:02:46]} 14. Bb2 {[%clk 0:02:51]}  Nd7 {[%clk 0:02:45]} 15. Nd2 {[%clk 0:02:49]}  Nxd2 {[%clk 0:02:33]} 16. Qxd2 {[%clk 0:02:48]}  f5 {[%clk 0:02:11]} 17. Ba3 {[%clk 0:02:44]}  Rf6 {[%clk 0:02:11]} 18. Bd6 {[%clk 0:02:43]}  e5 {[%clk 0:02:03]} 19. Ba3 {[%clk 0:02:29]}  e4 {[%clk 0:01:47]} 20. axb5 {[%clk 0:01:53]}  axb5 {[%clk 0:01:46]} 21. Bb4 {[%clk 0:01:53]}  Rfa6 {[%clk 0:01:43]} 22. Rxa6 {[%clk 0:01:51]}  Rxa6 {[%clk 0:01:44]} 23. Bb1 {[%clk 0:01:15]}  Ne5 {[%clk 0:01:42]} 24. Qb2 {[%clk 0:00:56]}  Nf3+ {[%clk 0:01:14]} 25. gxf3 {[%clk 0:00:55]}  Rh6 {[%clk 0:01:14]} 26. Rd1 {[%clk 0:00:27]}  Qg5+ {[%clk 0:01:05]} 27. Kf1 {[%clk 0:00:26]}  exf3 {[%clk 0:01:06]} 28. Ke1 {[%clk 0:00:26]}  Rxh2 {[%clk 0:01:03]} 29. Qa3 {[%clk 0:00:20]}  Rxf2 {[%clk 0:00:50]} 30. Kxf2 {[%clk 0:00:01]}  Qg2+ {[%clk 0:00:49]} 0-1


[Site "https://www.chess.com"]

[Event "Titled Tuesday Blitz March 14 Late 2023"]
[White "Fernandez, Maria Florencia"]
[Black "Chabris, Christopher"]
[WhiteFideId "116459"]
[BlackFideId "2005263"]
[WhiteElo "2155"]
[BlackElo "2184"]
[Result "1-0"]
[Round "03"]
[TimeControl "180+1"]
[Date "2023.03.14"]
[WhiteClock "0:00:11"]
[BlackClock "0:00:01"]

1. d4 {[%clk 0:03:00]}  Nf6 {[%clk 0:02:59]} 2. c4 {[%clk 0:02:59]}  e6 {[%clk 0:02:59]} 3. Nc3 {[%clk 0:02:50]}  Bb4 {[%clk 0:02:59]} 4. a3 {[%clk 0:02:49]}  Bxc3+ {[%clk 0:02:59]} 5. bxc3 {[%clk 0:02:50]}  b6 {[%clk 0:02:58]} 6. f3 {[%clk 0:02:50]}  Nc6 {[%clk 0:02:46]} 7. e4 {[%clk 0:02:48]}  d6 {[%clk 0:02:36]} 8. Bg5 {[%clk 0:02:47]}  h6 {[%clk 0:02:33]} 9. Bh4 {[%clk 0:02:45]}  g5 {[%clk 0:02:31]} 10. Bf2 {[%clk 0:02:44]}  Na5 {[%clk 0:02:29]} 11. Bd3 {[%clk 0:02:37]}  Ba6 {[%clk 0:02:24]} 12. Ne2 {[%clk 0:02:27]}  Qd7 {[%clk 0:02:24]} 13. h4 {[%clk 0:02:23]}  O-O-O {[%clk 0:02:19]} 14. c5 {[%clk 0:02:13]}  Bxd3 {[%clk 0:02:14]} 15. Qxd3 {[%clk 0:02:13]}  dxc5 {[%clk 0:02:05]} 16. O-O {[%clk 0:02:05]}  c4 {[%clk 0:01:54]} 17. Qc2 {[%clk 0:02:01]}  Rdg8 {[%clk 0:01:43]} 18. Rad1 {[%clk 0:01:46]}  Qe7 {[%clk 0:01:11]} 19. d5 {[%clk 0:01:15]}  exd5 {[%clk 0:01:09]} 20. exd5 {[%clk 0:01:15]}  g4 {[%clk 0:00:57]} 21. Nd4 {[%clk 0:01:06]}  gxf3 {[%clk 0:00:54]} 22. Qf5+ {[%clk 0:01:06]}  Kb7 {[%clk 0:00:51]} 23. Qxf3 {[%clk 0:01:05]}  Qe4 {[%clk 0:00:47]} 24. Rfe1 {[%clk 0:00:52]}  Qxf3 {[%clk 0:00:43]} 25. Nxf3 {[%clk 0:00:53]}  Re8 {[%clk 0:00:35]} 26. Bd4 {[%clk 0:00:48]}  Ng4 {[%clk 0:00:19]} 27. Bxh8 {[%clk 0:00:47]}  Rxh8 {[%clk 0:00:19]} 28. Re7 {[%clk 0:00:40]}  Kc8 {[%clk 0:00:15]} 29. Rxf7 {[%clk 0:00:38]}  Ne3 {[%clk 0:00:13]} 30. Rd4 {[%clk 0:00:27]}  Rg8 {[%clk 0:00:13]} 31. Kf2 {[%clk 0:00:22]}  Nc2 {[%clk 0:00:13]} 32. Re4 {[%clk 0:00:18]}  Nb3 {[%clk 0:00:10]} 33. Ree7 {[%clk 0:00:18]}  Nc5 {[%clk 0:00:08]} 34. Rxc7+ {[%clk 0:00:17]}  Kb8 {[%clk 0:00:09]} 35. Rce7 {[%clk 0:00:14]}  Nd3+ {[%clk 0:00:07]} 36. Kf1 {[%clk 0:00:12]}  Nc5 {[%clk 0:00:05]} 37. d6 {[%clk 0:00:12]}  Rd8 {[%clk 0:00:01]} 38. d7 {[%clk 0:00:11]} 1-0


[Site "https://www.chess.com"]

[Event "Titled Tuesday Blitz March 14 Late 2023"]
[White "Fernandez Siles, Luis"]
[Black "Fernandez Hernandez, Gerardo"]
[WhiteFideId "2209420"]
[BlackFideId "2207400"]
[WhiteElo "2186"]
[BlackElo "2194"]
[Result "0-1"]
[Round "03"]
[TimeControl "180+1"]
[Date "2023.03.14"]
[WhiteClock "0:00:37"]
[BlackClock "0:00:11"]

1. d4 {[%clk 0:03:00]}  Nf6 {[%clk 0:02:59]} 2. c4 {[%clk 0:03:00]}  c5 {[%clk 0:02:58]} 3. d5 {[%clk 0:03:00]}  g6 {[%clk 0:02:59]} 4. Nc3 {[%clk 0:02:59]}  Bg7 {[%clk 0:02:59]} 5. e4 {[%clk 0:02:59]}  d6 {[%clk 0:02:58]} 6. f4 {[%clk 0:02:51]}  O-O {[%clk 0:02:54]} 7. Bd3 {[%clk 0:02:51]}  e6 {[%clk 0:02:46]} 8. dxe6 {[%clk 0:02:51]}  Bxe6 {[%clk 0:02:37]} 9. f5 {[%clk 0:02:50]}  Bd7 {[%clk 0:02:34]} 10. Nf3 {[%clk 0:02:50]}  Nc6 {[%clk 0:02:24]} 11. O-O {[%clk 0:02:49]}  a6 {[%clk 0:02:04]} 12. a4 {[%clk 0:02:47]}  Nb4 {[%clk 0:01:58]} 13. Bb1 {[%clk 0:02:44]}  Bc6 {[%clk 0:01:58]} 14. Bg5 {[%clk 0:02:39]}  h6 {[%clk 0:01:52]} 15. fxg6 {[%clk 0:02:34]}  hxg5 {[%clk 0:01:44]} 16. gxf7+ {[%clk 0:02:34]}  Rxf7 {[%clk 0:01:42]} 17. Nxg5 {[%clk 0:02:33]}  Re7 {[%clk 0:01:28]} 18. Qf3 {[%clk 0:02:19]}  Re5 {[%clk 0:01:10]} 19. Qg3 {[%clk 0:02:03]}  Nh5 {[%clk 0:01:08]} 20. Qf3 {[%clk 0:01:29]}  Qxg5 {[%clk 0:01:01]} 21. Bd3 {[%clk 0:00:57]}  Rf8 {[%clk 0:00:55]} 22. Qh3 {[%clk 0:00:57]}  Nxd3 {[%clk 0:00:41]} 23. Qxd3 {[%clk 0:00:55]}  Nf4 {[%clk 0:00:42]} 24. Qf3 {[%clk 0:00:53]}  Re6 {[%clk 0:00:20]} 25. Kh1 {[%clk 0:00:52]}  Rg6 {[%clk 0:00:19]} 26. g3 {[%clk 0:00:46]}  Ne6 {[%clk 0:00:16]} 27. Qg2 {[%clk 0:00:44]}  Rxf1+ {[%clk 0:00:15]} 28. Rxf1 {[%clk 0:00:45]}  Nd4 {[%clk 0:00:15]} 29. Nd5 {[%clk 0:00:40]}  Bxd5 {[%clk 0:00:14]} 30. exd5 {[%clk 0:00:40]}  Nf5 {[%clk 0:00:13]} 31. Qe4 {[%clk 0:00:39]}  Rf6 {[%clk 0:00:12]} 32. Rf4 {[%clk 0:00:39]}  Rf8 {[%clk 0:00:12]} 33. Rg4 {[%clk 0:00:39]}  Qf6 {[%clk 0:00:11]} 34. Rf4 {[%clk 0:00:38]}  Qe5 {[%clk 0:00:10]} 35. Qf3 {[%clk 0:00:38]}  Qe1+ {[%clk 0:00:10]} 36. Kg2 {[%clk 0:00:38]}  Ne3+ {[%clk 0:00:10]} 37. Kh3 {[%clk 0:00:39]}  Rxf4 {[%clk 0:00:09]} 38. gxf4 {[%clk 0:00:37]}  Qf1+ {[%clk 0:00:09]} 39. Qxf1 {[%clk 0:00:37]}  Nxf1 {[%clk 0:00:10]} 40. Kg4 {[%clk 0:00:37]}  Bxb2 {[%clk 0:00:09]} 41. Kf5 {[%clk 0:00:37]}  Ne3+ {[%clk 0:00:09]} 42. Ke6 {[%clk 0:00:37]}  Nxc4 {[%clk 0:00:10]} 43. f5 {[%clk 0:00:37]}  b5 {[%clk 0:00:10]} 44. a5 {[%clk 0:00:37]}  b4 {[%clk 0:00:09]} 45. Kd7 {[%clk 0:00:35]}  Kf8 {[%clk 0:00:08]} 46. Kc6 {[%clk 0:00:36]}  b3 {[%clk 0:00:08]} 47. Kb7 {[%clk 0:00:37]}  Bf6 {[%clk 0:00:06]} 48. Kxa6 {[%clk 0:00:37]}  Bd8 {[%clk 0:00:06]} 49. Kb5 {[%clk 0:00:36]}  Bxa5 {[%clk 0:00:06]} 50. Kxc4 {[%clk 0:00:37]}  b2 {[%clk 0:00:06]} 51. h4 {[%clk 0:00:34]}  b1=Q {[%clk 0:00:07]} 52. h5 {[%clk 0:00:35]}  Qxf5 {[%clk 0:00:07]} 53. h6 {[%clk 0:00:36]}  Qh7 {[%clk 0:00:06]} 54. Kb5 {[%clk 0:00:36]}  Bb4 {[%clk 0:00:07]} 55. Kc6 {[%clk 0:00:37]}  Qxh6 {[%clk 0:00:07]} 56. Kb5 {[%clk 0:00:37]}  Qg5 {[%clk 0:00:08]} 57. Kc6 {[%clk 0:00:37]}  Qe5 {[%clk 0:00:09]} 58. Kd7 {[%clk 0:00:37]}  Qxd5 {[%clk 0:00:09]} 59. Kc7 {[%clk 0:00:37]}  c4 {[%clk 0:00:10]} 60. Kb6 {[%clk 0:00:37]}  c3 {[%clk 0:00:11]} 0-1


[Site "https://www.chess.com"]